bitfinex-derivatives/quotes_SOLF0:USTF0_20241227
["timestamp","ask_amount","ask_price","bid_price","bid_amount"]
[1735262079361,104.97330175,189.25,189.21,2.6458]
[1735262079560,2.6454,189.24,189.21,2.6458]
[1735262090272,6.26084156,189.22,189.15,1.5681]
[1735262090475,6.26084156,189.2,189.14,3.12]
[1735262090776,2.6462,189.19,189.14,5.7667]
[1735262090976,6.26084156,189.2,189.14,3.12]
[1735262091276,2.6461,189.19,189.15,2.6465]
[1735262091475,6.26084156,189.22,189.14,9.38084156]
[1735262091679,7.33667702,189.23,189.16,6.26084156]
[1735262092676,2.6458,189.21,189.18,2.6461]
[1735262093179,6.26084156,189.24,189.16,6.26084156]
[1735262093379,2.6457,189.22,189.19,2.646]
[1735262093577,2.6457,189.22,189.19,5.766]
[1735262093774,6.26084156,189.24,189.19,3.12]
[1735262093976,6.26084156,189.22,189.14,6.26084156]
[1735262094176,6.26084156,189.22,189.17,3.12]
[1735262094375,2.6459,189.21,189.17,3.12]
[1735262094570,6.26084156,189.22,189.17,3.12]
[1735262094975,2.6462,189.19,189.17,3.12]
[1735262095781,13.59751858,189.24,189.17,3.12]
[1735262096877,2.6458,189.22,189.19,2.646]
[1735262097080,104.97330175,189.25,189.18,6.26084156]
[1735262097476,2.6456,189.23,189.2,2.6458]
[1735262098380,104.97330175,189.25,189.18,6.26084156]
[1735262098675,104.97330175,189.25,189.19,2.6461]
[1735262100283,104.97330175,189.25,189.21,2.6457]
[1735262100679,104.97330175,189.25,189.22,3.12]
[1735262101479,2.6454,189.24,189.22,3.12]
[1735262101675,7.33667702,189.27,189.22,9.38084156]
[1735262101875,7.33667702,189.27,189.24,6.26084156]
[1735262102085,7.33667702,189.27,189.22,12.02654156]
[1735262102280,35.60754966,189.29,189.22,3.12]
[1735262103084,2.6454,189.24,189.22,3.12]
[1735262103280,6.26084156,189.29,189.22,3.12]
[1735262103577,2.6455,189.23,189.22,3.12]
[1735262103789,6.26084156,189.27,189.22,3.12]
[1735262103975,35.60754966,189.31,189.22,9.38084156]
[1735262104175,2.6447,189.29,189.24,6.26084156]
[1735262105584,2.6447,189.29,189.26,2.6451]
[1735262105784,2.6447,189.29,189.27,3.12]
[1735262111790,2.6448,189.28,189.27,3.12]
[1735262113387,6.26084156,189.29,189.21,3.12]
[1735262113591,6.26084156,189.27,189.21,3.12]
[1735262113788,6.26084156,189.27,189.2,3.12]
[1735262114093,6.26084156,189.29,189.2,3.12]
[1735262114301,6.26084156,189.31,189.23,6.26084156]
[1735262114589,2.645,189.27,189.23,8.90624156]
[1735262116189,6.26084156,189.29,189.21,9.47794156]
[1735262116395,6.26084156,189.29,189.22,3.12]
[1735262116697,2.6454,189.25,189.23,3.12]
[1735262117188,2.6449,189.28,189.24,2.6453]
[1735262117789,111.19769481,189.31,189.24,2.6453]
[1735262117993,2.6449,189.28,189.24,2.6453]
[1735262118197,104.93685325,189.31,189.25,6.26084156]
[1735262119397,2.6448,189.29,189.26,2.6451]
[1735262120396,2.6443,189.32,189.28,2.6447]
[1735262120591,2.6443,189.32,189.28,5.7647]
[1735262120798,2.6443,189.32,189.28,3.12]
[1735262121193,6.26084156,189.35,189.28,3.12]
[1735262121393,2.6447,189.29,189.28,3.12]
[1735262122400,6.26084156,189.35,189.28,3.12]
[1735262123606,6.26084156,189.33,189.25,6.26084156]
[1735262123806,6.26084156,189.33,189.25,3.12]
[1735262123999,2.6449,189.28,189.25,9.38084156]
[1735262124200,6.26084156,189.33,189.25,9.38084156]
[1735262124801,104.92066836,189.34,189.27,6.26084156]
[1735262125207,2.6444,189.32,189.28,2.6448]
[1735262129403,2.6449,189.28,189.25,5.7652]
[1735262129604,2.6449,189.28,189.25,12.02604156]
[1735262130407,2.6449,189.28,189.25,8.90604156]
[1735262130609,2.6449,189.28,189.26,3.12]
[1735262130810,6.26084156,189.31,189.25,3.12]
[1735262131004,6.26084156,189.33,189.25,3.12]
[1735262131204,2.6448,189.28,189.25,5.7652]
[1735262131406,6.26084156,189.33,189.25,9.38084156]
[1735262132406,2.6451,189.27,189.25,3.12]
[1735262133408,2.6451,189.27,189.2,6.26084156]
[1735262133409,6.26084156,189.27,189.2,6.26084156]
[1735262133707,6.26084156,189.27,189.21,3.12]
[1735262133904,2.6455,189.24,189.21,3.12]
[1735262135911,2.6456,189.23,189.21,3.12]
[1735262136113,6.26084156,189.27,189.21,3.12]
[1735262136409,118.53946871,189.31,189.21,9.38084156]
[1735262136608,112.27862715,189.31,189.25,8.90594156]
[1735262136808,112.27862715,189.31,189.26,3.12]
[1735262137209,2.6447,189.3,189.26,5.7651]
[1735262137613,2.6447,189.3,189.27,8.90574156]
[1735262138710,107.58635013,189.31,189.27,8.90574156]
[1735262138911,2.6444,189.31,189.27,8.90574156]
[1735262139111,6.26084156,189.35,189.27,8.90574156]
[1735262139312,2.6446,189.3,189.27,8.90574156]
[1735262140214,2.6443,189.32,189.28,2.6447]
[1735262140411,104.91912282,189.35,189.29,6.26084156]
[1735262141118,2.6442,189.33,189.29,8.90554156]
[1735262142718,2.6442,189.33,189.3,2.6446]
[1735262142921,2.6442,189.33,189.31,3.12]
[1735262150328,2.6437,189.36,189.33,2.644]
[1735262150626,2.6437,189.36,189.33,8.90484156]
[1735262155027,2.6434,189.39,189.33,6.26084156]
[1735262155230,6.26084156,189.43,189.35,6.26084156]
[1735262155430,6.26084156,189.43,189.36,3.12]
[1735262156434,2.6433,189.39,189.36,5.7637]
[1735262159434,2.6436,189.37,189.36,3.12]
[1735262159632,6.26084156,189.41,189.36,3.12]
[1735262160832,6.26084156,189.43,189.36,3.12]
[1735262161133,2.6433,189.39,189.36,5.7636]
[1735262163229,2.6435,189.38,189.36,3.12]
[1735262163433,6.26084156,189.41,189.36,3.12]
[1735262163934,2.6434,189.39,189.36,5.7637]
[1735262167836,2.6434,189.38,189.36,5.7637]
[1735262169936,2.6434,189.38,189.36,3.12]
[1735262171244,6.26084156,189.41,189.36,3.12]
[1735262171444,2.6436,189.37,189.36,3.12]
[1735262177048,2.6439,189.35,189.34,3.12]
[1735262179051,2.6437,189.37,189.34,5.7639]
[1735262179246,2.6437,189.37,189.34,9.38084156]
[1735262180545,2.6437,189.37,189.35,2.6439]
[1735262181446,2.6437,189.37,189.34,12.02484156]
[1735262181652,2.6438,189.36,189.34,9.38084156]
[1735262181851,2.6438,189.36,189.34,3.12]
[1735262183050,6.26084156,189.41,189.34,9.38084156]
[1735262183051,2.6434,189.38,189.34,9.38084156]
[1735262183549,104.87696897,189.42,189.34,9.38084156]
[1735262184251,2.6432,189.4,189.37,2.6436]
[1735262185850,104.87696897,189.42,189.32,1.6514]
[1735262186055,2.6438,189.36,189.33,3.12]
[1735262186253,6.26084156,189.41,189.33,3.12]
[1735262186953,2.6434,189.39,189.34,2.6439]
[1735262187154,6.26084156,189.41,189.34,2.6439]
[1735262187556,2.6437,189.37,189.34,2.6439]
[1735262189256,2.6437,189.36,189.34,2.6439]
[1735262189652,6.26084156,189.41,189.34,2.6439]
[1735262189952,6.26084156,189.41,189.33,3.12]
[1735262190153,2.6435,189.38,189.35,2.6438]
[1735262191655,2.6435,189.38,189.34,6.26084156]
[1735262191856,2.6435,189.38,189.34,8.90484156]
[1735262192057,2.6436,189.37,189.34,8.90484156]
[1735262193253,2.6436,189.37,189.34,2.644]
[1735262193855,2.644,189.35,189.32,4.2956]
[1735262194051,6.26084156,189.35,189.31,2.62836116]
[1735262194259,6.26084156,189.33,189.26,66.97422741]
[1735262196469,2.6448,189.29,189.26,66.97422741]
[1735262196954,2.645,189.27,189.26,63.85422741]
[1735262197157,6.26084156,189.29,189.24,3.12]
[1735262197353,6.26084156,189.29,189.21,9.36014156]
[1735262197551,2.6455,189.24,189.22,3.12]
[1735262199655,2.6453,189.25,189.22,3.12]
[1735262200764,29.3467081,189.35,189.23,6.26084156]
[1735262200964,6.26084156,189.33,189.25,6.26084156]
[1735262201164,2.6445,189.31,189.27,2.6449]
[1735262201366,2.6445,189.31,189.28,3.12]
[1735262201867,6.26084156,189.33,189.28,3.12]
[1735262201868,2.6443,189.32,189.28,3.12]
[1735262202064,6.26084156,189.35,189.28,3.12]
[1735262202264,6.26084156,189.37,189.29,6.26084156]
[1735262203558,13.59751858,189.41,189.34,3.12]
[1735262203956,7.33667702,189.41,189.35,6.26084156]
[1735262204462,6.26084156,189.42,189.35,6.26084156]
[1735262204767,6.26084156,189.4,189.32,3.2547]
[1735262204969,2.644,189.35,189.32,3.2547]
[1735262205162,6.26084156,189.36,189.31,63.83390907]
[1735262205368,6.26084156,189.36,189.32,3.12]
[1735262206067,2.6441,189.34,189.32,3.12]
[1735262206664,2.6439,189.35,189.32,3.12]
[1735262207163,6.26084156,189.38,189.32,3.12]
[1735262207667,2.6441,189.34,189.32,3.12]
[1735262209170,6.26084156,189.38,189.32,3.12]
[1735262209368,2.6441,189.33,189.32,3.12]
[1735262210069,7.84623464,189.43,189.29,4.7545]
[1735262210070,2.6444,189.31,189.29,4.7545]
[1735262210270,6.26084156,189.34,189.27,3.12]
[1735262210778,2.6447,189.3,189.27,3.12]
[1735262212269,6.26084156,189.34,189.24,6.26084156]
[1735262212580,6.26084156,189.3,189.24,3.12]
[1735262213073,6.26084156,189.26,189.21,3.12]
[1735262213469,2.6458,189.22,189.2,3.12]
[1735262213766,6.26084156,189.26,189.2,3.12]
[1735262213964,6.26084156,189.27,189.2,3.12]
[1735262214167,6.26084156,189.29,189.21,6.26084156]
[1735262215272,6.26084156,189.27,189.2,3.12]
[1735262216072,6.26084156,189.25,189.2,3.12]
[1735262216273,6.26084156,189.27,189.2,3.12]
[1735262217565,0.1141,189.33,189.2,3.12]
[1735262217566,0.1141,189.33,189.21,6.26084156]
[1735262217868,6.26084156,189.31,189.23,6.26084156]
[1735262218068,2.6449,189.28,189.24,2.6453]
[1735262218264,6.26084156,189.29,189.25,3.12]
[1735262218969,2.6451,189.27,189.25,3.12]
[1735262219274,6.26084156,189.29,189.25,3.12]
[1735262220172,2.6451,189.26,189.25,3.12]
[1735262220777,6.26084156,189.31,189.25,3.12]
[1735262221681,6.26084156,189.34,189.25,9.38084156]
[1735262221873,2.6447,189.3,189.26,2.6451]
[1735262223479,2.6444,189.31,189.27,2.6449]
[1735262223672,104.90681975,189.38,189.29,6.26084156]
[1735262223977,111.16766131,189.38,189.3,3.12]
[1735262224169,2.6439,189.35,189.32,2.6443]
[1735262224370,29.3467081,189.41,189.31,6.26084156]
[1735262224371,6.26084156,189.39,189.31,6.26084156]
[1735262224879,2.6438,189.36,189.32,2.6443]
[1735262226582,2.6438,189.36,189.33,2.6441]
[1735262226783,2.6438,189.36,189.31,6.26084156]
[1735262227685,2.6443,189.33,189.3,3.12]
[1735262228084,2.6443,189.33,189.29,8.90554156]
[1735262228287,2.6445,189.31,189.3,3.12]
[1735262229091,2.6447,189.3,189.29,3.12]
[1735262230389,3.12,189.41,189.29,3.12]
[1735262230689,2.6443,189.32,189.29,3.12]
[1735262231392,9.75761418,189.38,189.29,3.12]
[1735262231591,2.6446,189.3,189.29,3.12]
[1735262236292,2.6445,189.31,189.29,3.12]
[1735262239396,29.3467081,189.41,189.29,3.12]
[1735262239601,9.75761418,189.4,189.29,3.12]
[1735262240100,2.6437,189.37,189.33,2.6441]
[1735262240310,9.75761418,189.4,189.34,3.12]
[1735262241202,2.6438,189.36,189.34,3.12]
[1735262241998,2.6439,189.35,189.34,3.12]
[1735262243104,2.6434,189.39,189.34,3.12]
[1735262243298,9.75761418,189.4,189.34,3.12]
[1735262244001,2.6434,189.39,189.34,3.12]
[1735262244202,9.75761418,189.43,189.34,3.12]
[1735262244504,2.6431,189.41,189.36,2.6437]
[1735262244701,9.75761418,189.43,189.36,2.6437]
[1735262245101,2.6434,189.39,189.35,2.6438]
[1735262245506,2.6434,189.39,189.34,3.12]
[1735262246409,9.75761418,189.43,189.34,3.12]
[1735262246605,2.6435,189.38,189.34,3.12]
[1735262246806,9.75761418,189.43,189.34,3.12]
[1735262247005,2.6443,189.32,189.31,3.18]
[1735262247313,9.75761418,189.4,189.31,3.18]
[1735262247703,2.644,189.35,189.31,5.8244]
[1735262248008,2.644,189.35,189.31,3.18]
[1735262248401,9.75761418,189.4,189.28,59.36987333]
[1735262248708,2.644,189.34,189.29,3.18]
[1735262248908,9.75761418,189.4,189.29,3.18]
[1735262249109,2.6446,189.3,189.29,3.18]
[1735262249515,2.645,189.27,189.26,6.4209]
[1735262249807,9.75761418,189.34,189.26,6.4209]
[1735262249808,9.75761418,189.34,189.26,3.18]
[1735262250008,10.81871418,189.37,189.26,3.18]
[1735262250207,2.6444,189.32,189.28,2.6448]
[1735262250405,10.81871418,189.37,189.28,2.6448]
[1735262251008,2.6446,189.3,189.26,5.825]
[1735262253313,6.24545876,189.31,189.26,3.18]
[1735262254510,2.6447,189.29,189.26,5.8251]
[1735262254715,8.39777702,189.37,189.26,5.8251]
[1735262254716,6.24545876,189.33,189.26,5.8251]
[1735262255315,6.24545876,189.33,189.26,3.18]
[1735262255513,6.24545876,189.33,189.27,3.18]
[1735262255710,6.24545876,189.29,189.2,3.1591]
[1735262255917,3.18,189.32,189.14,58.03197383]
[1735262255918,6.24545876,189.24,189.18,2.6462]
[1735262256214,6.24545876,189.24,189.17,9.42545876]
[1735262256414,2.6459,189.21,189.17,12.07185876]
[1735262257715,2.6457,189.22,189.17,12.07185876]
[1735262258208,10.71659187,189.3,189.17,3.18]
[1735262258413,9.76649187,189.3,189.17,12.94649187]
[1735262258612,3.18,189.31,189.17,12.94649187]
[1735262258815,2.6451,189.27,189.17,12.94649187]
[1735262259213,7.33667702,189.32,189.17,12.94649187]
[1735262259915,2.6451,189.27,189.22,2.6456]
[1735262260110,2.6451,189.27,189.23,3.18]
[1735262260317,9.76649187,189.35,189.24,3.18]
[1735262260516,9.76649187,189.35,189.25,3.18]
[1735262262022,2.6443,189.32,189.27,2.6449]
[1735262262219,9.76649187,189.35,189.27,2.6449]
[1735262263018,9.76649187,189.35,189.28,2.6448]
[1735262263321,12.94649187,189.38,189.28,2.6448]
[1735262263524,2.6443,189.32,189.28,2.6448]
[1735262265618,2.6447,189.29,189.25,5.8252]
[1735262266923,2.6446,189.3,189.26,2.6451]
[1735262267325,2.6444,189.32,189.25,3.18]
[1735262267516,2.6444,189.32,189.26,1.6593]
[1735262267721,9.76649187,189.38,189.26,1.6593]
[1735262267921,2.6437,189.37,189.26,1.6593]
[1735262268117,7.33667702,189.39,189.26,1.6593]
[1735262268322,17.10316889,189.39,189.26,1.6593]
[1735262268620,2.6446,189.3,189.27,2.6449]
[1735262268822,9.76649187,189.36,189.26,1.6593]
[1735262269015,2.6442,189.33,189.29,2.6446]
[1735262269219,2.6442,189.33,189.26,1.6593]
[1735262269427,9.76649187,189.39,189.26,1.6593]
[1735262269622,9.76649187,189.39,189.26,11.42579187]
[1735262270124,2.6439,189.35,189.29,2.6446]
[1735262270327,2.6439,189.35,189.3,3.18]
[1735262271425,2.6439,189.35,189.32,2.6443]
[1735262271622,2.6442,189.33,189.3,3.18]
[1735262272626,2.6442,189.33,189.3,5.8245]
[1735262273227,9.76649187,189.39,189.3,5.8245]
[1735262273428,2.644,189.34,189.3,5.8245]
[1735262273727,9.76649187,189.39,189.3,3.18]
[1735262274126,9.88269187,189.42,189.3,3.18]
[1735262274924,2.6437,189.37,189.33,2.6441]
[1735262276429,2.6439,189.36,189.32,2.6443]
[1735262277530,2.6439,189.36,189.33,2.6441]
[1735262278732,2.6441,189.34,189.31,1.6267]
[1735262279633,9.76649187,189.42,189.31,1.6267]
[1735262279834,9.76649187,189.42,189.33,2.6441]
[1735262280028,9.76649187,189.42,189.31,1.6267]
[1735262280333,2.6436,189.38,189.34,2.644]
[1735262280735,9.76649187,189.42,189.34,2.644]
[1735262281031,9.76649187,189.42,189.33,2.6441]
[1735262282635,2.6438,189.36,189.33,2.6441]
[1735262283038,9.76649187,189.42,189.31,4.2711]
[1735262283732,9.76649187,189.42,189.31,1.6267]
[1735262283935,9.76649187,189.39,189.3,2.6446]
[1735262284337,2.6443,189.32,189.3,2.6446]
[1735262284735,9.76649187,189.39,189.29,3.18]
[1735262285844,2.6445,189.31,189.29,3.18]
[1735262286941,2.6443,189.32,189.29,5.8247]
[1735262287941,2.6444,189.31,189.29,3.18]
[1735262289451,2.6446,189.3,189.27,5.8249]
[1735262289641,3.18,189.38,189.24,3.2011]
[1735262289842,9.76649187,189.33,189.25,3.18]
[1735262290147,9.76649187,189.33,189.24,1.6214]
[1735262290848,2.6453,189.25,189.24,1.6214]
[1735262291151,12.94649187,189.33,189.22,3.18]
[1735262291344,9.76649187,189.3,189.22,3.18]
[1735262292040,2.6457,189.22,189.2,3.2939]
[1735262292245,2.6457,189.22,189.19,3.18]
[1735262294752,9.76649187,189.3,189.19,3.18]
[1735262294951,2.6456,189.23,189.19,5.8261]
[1735262295653,2.6454,189.25,189.21,2.6458]
[1735262298456,9.76649187,189.33,189.2,1.5919]
[1735262298754,9.76649187,189.33,189.21,1.6418]
[1735262298951,2.6448,189.29,189.25,2.6452]
[1735262299149,2.6448,189.29,189.25,5.8252]
[1735262299755,39.11319997,189.36,189.25,3.18]
[1735262300053,0.86046846,189.35,189.25,3.18]
[1735262300445,9.76649187,189.33,189.25,3.18]
[1735262302560,9.76649187,189.33,189.26,2.645]
[1735262302857,9.76649187,189.33,189.25,3.18]
[1735262303060,3.18,189.35,189.25,3.18]
[1735262303061,2.6451,189.26,189.25,3.18]
[1735262303254,9.76649187,189.3,189.15,12.31049616]
[1735262303255,12.94649187,189.3,189.15,12.31049616]
[1735262303455,9.76649187,189.27,189.17,4.7603]
[1735262303658,2.6462,189.19,189.17,4.7603]
[1735262304459,2.6462,189.19,189.17,1.5803]
[1735262305160,2.6456,189.23,189.19,2.646]
[1735262305461,0.9477,189.29,189.19,2.646]
[1735262305660,2.6454,189.24,189.18,2.6461]
[1735262305960,9.76649187,189.27,189.18,2.6461]
[1735262306158,9.76649187,189.27,189.17,1.5803]
[1735262306359,2.6456,189.23,189.19,2.646]
[1735262307749,9.76649187,189.27,189.17,1.5803]
[1735262309158,93.51258351,189.3,189.17,1.5803]
[1735262309865,2.6453,189.25,189.21,2.6457]
[1735262310162,93.51258351,189.3,189.21,2.6457]
[1735262311365,2.6454,189.25,189.21,2.6457]
[1735262311561,93.51258351,189.3,189.23,2.6455]
[1735262311963,93.51258351,189.3,189.21,3.18]
[1735262312665,93.51258351,189.3,189.22,2.6457]
[1735262313262,2.6453,189.26,189.22,2.6457]
[1735262314763,2.6453,189.26,189.23,2.6455]
[1735262315269,2.6453,189.25,189.22,2.6457]
[1735262315970,93.51258351,189.3,189.21,3.18]
[1735262316161,2.6452,189.26,189.23,2.6455]
[1735262318069,93.51258351,189.3,189.21,3.18]
[1735262318272,2.645,189.27,189.24,2.6454]
[1735262319069,93.51258351,189.3,189.21,3.18]
[1735262319370,2.6449,189.28,189.21,3.18]
[1735262319765,2.6449,189.28,189.25,2.6453]
[1735262320966,2.645,189.27,189.24,2.6453]
[1735262321263,6.24736433,189.26,189.17,4.7603]
[1735262321572,2.6462,189.19,189.16,3.18]
[1735262324773,2.6462,189.19,189.15,5.19060429]
[1735262326769,2.6462,189.19,189.15,2.54400429]
[1735262326972,2.6462,189.19,189.16,2.6465]
[1735262328074,2.6464,189.17,189.14,2.6468]
[1735262328671,12.95035028,189.24,189.13,53.62723517]
[1735262328866,9.77035028,189.21,189.13,50.98033517]
[1735262329068,9.77035028,189.21,189.07,12.93385028]
[1735262329274,9.77035028,189.18,189.08,4.8283]
[1735262329667,9.77035028,189.21,189.08,4.8283]
[1735262329873,2.98522841,189.26,189.1,9.77035028]
[1735262330071,2.98522841,189.26,189.13,9.77035028]
[1735262330072,29.3467081,189.25,189.13,9.77035028]
[1735262330373,2.6456,189.23,189.14,6.4633]
[1735262330775,2.6457,189.22,189.18,2.6461]
[1735262331373,2.98522841,189.26,189.15,1.6483]
[1735262331673,2.6456,189.23,189.19,2.6461]
[1735262331866,2.98522841,189.26,189.15,1.6483]
[1735262332167,2.6454,189.24,189.15,1.6483]
[1735262333075,2.98522841,189.26,189.15,1.6483]
[1735262333476,2.6458,189.22,189.18,2.6461]
[1735262333676,2.6458,189.22,189.15,1.6483]
[1735262334667,2.98522841,189.26,189.16,9.77035028]
[1735262334871,83.74609164,189.3,189.16,9.77035028]
[1735262335378,2.645,189.28,189.24,2.6453]
[1735262335578,2.645,189.28,189.24,5.7853]
[1735262335968,2.645,189.27,189.24,3.14]
[1735262337679,2.645,189.27,189.23,2.6455]
[1735262337882,2.645,189.27,189.23,5.7855]
[1735262339373,2.6449,189.28,189.23,3.14]
[1735262340484,2.6449,189.28,189.24,2.6454]
[1735262341880,83.74609164,189.3,189.23,3.14]
[1735262342385,7.33667702,189.34,189.23,3.14]
[1735262342680,7.33667702,189.34,189.24,4.9298]
[1735262343186,7.33667702,189.34,189.27,2.6449]
[1735262343386,7.33667702,189.34,189.28,3.14]
[1735262343688,9.77035028,189.36,189.28,3.14]
[1735262344487,2.6441,189.34,189.28,3.14]
[1735262344688,9.77035028,189.36,189.28,5.7848]
[1735262345494,2.6444,189.32,189.28,5.7848]
[1735262345694,9.77035028,189.36,189.28,5.7848]
[1735262346085,2.6441,189.34,189.28,5.7848]
[1735262346389,9.77035028,189.36,189.28,5.7848]
[1735262346786,2.6444,189.32,189.28,5.7848]
[1735262347185,2.6444,189.32,189.28,3.14]
[1735262347386,2.6444,189.32,189.29,2.6446]
[1735262348996,2.6442,189.33,189.28,3.14]
[1735262349203,9.77035028,189.39,189.31,2.6444]
[1735262349394,9.77035028,189.39,189.28,3.14]
[1735262349595,2.6443,189.32,189.29,2.6447]
[1735262350100,30.2947081,189.41,189.28,3.14]
[1735262350101,2.6437,189.37,189.33,2.6441]
[1735262350305,29.3467081,189.41,189.33,3.14]
[1735262350604,9.77035028,189.39,189.26,3.14]
[1735262350795,2.6443,189.32,189.26,3.14]
[1735262350996,9.77035028,189.36,189.26,3.14]
[1735262351192,9.77035028,189.36,189.27,2.645]
[1735262351193,2.6446,189.31,189.27,2.645]
[1735262351394,9.77035028,189.36,189.26,3.14]
[1735262352205,6.24370894,189.35,189.26,3.14]
[1735262352906,2.6445,189.31,189.27,2.6449]
[1735262353106,6.24370894,189.33,189.26,3.14]
[1735262353405,6.24370894,189.31,189.25,3.14]
[1735262354399,6.24370894,189.29,189.15,2.29398176]
[1735262354595,6.24370894,189.29,189.2,6.24370894]
[1735262354799,6.24370894,189.29,189.21,3.14]
[1735262355001,2.6453,189.26,189.23,2.6455]
[1735262355398,3.14,189.35,189.21,3.14]
[1735262355399,2.6454,189.24,189.21,3.14]
[1735262356805,2.6454,189.24,189.21,5.7858]
[1735262358312,9.76423261,189.3,189.16,14.67473261]
[1735262358604,9.76423261,189.27,189.17,3.14]
[1735262360112,2.646,189.2,189.17,3.14]
[1735262360304,9.76423261,189.24,189.16,1.6631]
[1735262360701,2.6463,189.18,189.15,2.29398176]
[1735262360906,9.76423261,189.24,189.15,2.29398176]
[1735262361107,2.6466,189.16,189.13,3.14]
[1735262361813,2.6467,189.15,189.13,3.14]
[1735262362312,2.6468,189.14,189.11,4.3095]
[1735262362607,2.6468,189.14,189.11,4.8023]
[1735262363114,2.647,189.13,189.09,55.74827538]
[1735262363303,2.647,189.13,189.09,58.88827538]
[1735262363507,2.647,189.13,189.09,56.24077538]
[1735262364206,2.6468,189.15,189.09,56.24077538]
[1735262364403,9.76423261,189.21,189.09,56.24077538]
[1735262364610,9.76423261,189.21,189.1,3.2568]
[1735262364809,9.76423261,189.21,189.12,2.6471]
[1735262365611,2.6466,189.16,189.1,3.2568]
[1735262365806,9.76423261,189.18,189.09,3.14]
[1735262366006,9.76423261,189.18,189.04,3.2568]
[1735262366214,2.6474,189.1,189.06,2.6479]
[1735262366610,9.76423261,189.15,189.04,3.2568]
[1735262367010,12.90423261,189.15,189.04,3.2568]
[1735262367512,2.6476,189.09,189.04,5.9049]
[1735262367711,12.90423261,189.15,189.04,5.9049]
[1735262368111,2.6476,189.09,189.04,5.9049]
[1735262368419,9.76423261,189.12,189.03,5.7884]
[1735262368619,2.6475,189.1,189.03,5.7884]
[1735262368819,9.76423261,189.12,189.03,5.7884]
[1735262369219,2.6478,189.08,189.03,5.7884]
[1735262369414,10.71133261,189.18,189.03,3.14]
[1735262369618,2.6474,189.11,189.03,3.14]
[1735262369820,9.76423261,189.13,189.03,3.14]
[1735262370021,9.76423261,189.13,189.04,2.6482]
[1735262370317,2.6478,189.07,189.04,2.6482]
[1735262370522,2.6478,189.07,189.03,5.7884]
[1735262370723,9.76423261,189.1,189.03,3.14]
[1735262371023,2.6481,189.06,189.0,4.769]
[1735262371218,9.76423261,189.1,189.01,2.6486]
[1735262371418,2.6478,189.07,189.0,4.769]
[1735262372021,2.6475,189.09,189.05,2.648]
[1735262372411,3.14,189.12,189.0,4.769]
[1735262372621,9.76423261,189.13,189.0,4.769]
[1735262372812,2.6478,189.08,189.04,2.6482]
[1735262373019,2.6478,189.08,189.01,3.14]
[1735262373724,2.6481,189.05,189.01,3.14]
[1735262374826,2.6479,189.07,189.01,3.14]
[1735262375029,9.76423261,189.1,189.01,3.14]
[1735262376228,0.1147,189.16,189.01,3.14]
[1735262376430,9.87893261,189.16,189.01,12.90423261]
[1735262376620,2.6471,189.12,189.08,2.6476]
[1735262376821,9.76423261,189.16,189.07,3.14]
[1735262378030,2.6476,189.09,189.07,3.14]
[1735262379629,9.76423261,189.13,189.07,3.14]
[1735262379828,2.6474,189.1,189.07,3.14]
[1735262380332,9.76423261,189.13,189.07,3.14]
[1735262380633,2.6476,189.09,189.07,3.14]
[1735262382425,9.76423261,189.09,189.0,1.629]
[1735262382733,9.76423261,189.06,188.97,3.14]
[1735262382931,9.76423261,189.06,188.9,9.76423261]
[1735262383338,9.76423261,189.03,188.94,3.14]
[1735262383534,9.76423261,189.03,188.91,1.6193]
[1735262384029,9.76423261,189.0,188.89,3.2144]
[1735262384336,9.76423261,188.97,188.89,3.2144]
[1735262384536,2.6498,188.93,188.89,3.2144]